bitfinex/quotes_ETHUSD_20251214
["timestamp","ask_amount","ask_price","bid_price","bid_amount"]
[1765714304892,0.4955,3088.7,3088.6,0.516]
[1765714305198,0.0195,3088.7,3088.6,0.516]
[1765714305496,0.4955,3088.7,3088.6,3.75371287]
[1765714305819,0.4955,3088.7,3088.6,4.33418816]
[1765714306104,0.4955,3088.7,3088.6,3.81818816]
[1765714308395,0.1824,3089.0,3088.6,3.81818816]
[1765714308396,0.1824,3089.0,3088.7,0.58047529]
[1765714308768,0.4816,3089.0,3088.8,0.405504]
[1765714309097,0.1814,3090.0,3088.9,2.41637929]
[1765714309297,0.1814,3090.0,3089.3,0.405504]
[1765714309592,0.1814,3090.0,3089.7,0.58047529]
[1765714309794,0.1814,3090.0,3089.8,0.516]
[1765714310095,0.001,3090.2,3089.9,0.405504]
[1765714310398,0.001,3090.2,3090.1,0.98597929]
[1765714310575,0.001,3090.2,3090.1,1.09647529]
[1765714310761,0.2461,3090.2,3090.1,1.09647529]
[1765714310974,0.2461,3090.2,3090.1,0.58047529]
[1765714311690,0.2461,3090.2,3090.1,3.81661651]
[1765714311887,0.2461,3090.2,3090.1,3.23614122]
[1765714313219,0.2461,3090.2,3090.1,3.81661651]
[1765714313711,0.2461,3090.2,3090.1,4.33261651]
[1765714314015,0.001,3090.2,3090.1,4.73812051]
[1765714314382,0.001,3090.2,3090.1,4.33261651]
[1765714315307,0.001,3090.2,3090.1,3.81661651]
[1765714315616,0.001,3090.2,3090.1,5.19772051]
[1765714315913,0.001,3090.2,3090.1,35.69332051]
[1765714317008,0.001,3090.2,3090.1,3.81661651]
[1765714317605,0.001,3090.2,3090.1,3.23614122]
[1765714317981,0.2461,3090.2,3090.1,3.23614122]
[1765714318489,0.001,3090.2,3090.1,5.58132031]
[1765714318688,0.001,3090.2,3090.1,45.7089956]
[1765714319019,0.001,3090.2,3090.1,29.6879956]
[1765714319505,0.001,3090.2,3090.1,36.6573956]
[1765714319705,0.001,3090.2,3090.1,18.9859956]
[1765714319912,0.001,3090.2,3090.1,8.30412051]
[1765714320286,0.001,3090.2,3090.1,4.73812051]
[1765714321086,0.001,3090.2,3090.1,3.75214122]
[1765714321087,0.2461,3090.2,3090.1,3.75214122]
[1765714321276,0.2461,3090.2,3090.1,4.33261651]
[1765714321482,0.2461,3090.2,3090.1,3.75214122]
[1765714321810,0.2461,3090.2,3090.1,3.81661651]
[1765714322131,0.2461,3090.2,3090.1,4.33261651]
[1765714322424,0.001,3090.2,3090.1,5.0895043]
[1765714322723,0.001,3090.2,3090.1,4.5735043]
[1765714322882,0.001,3090.2,3090.1,3.81661651]
[1765714324718,0.2461,3090.2,3090.1,3.81661651]
[1765714325011,0.001,3090.2,3090.1,3.81661651]
[1765714325412,0.001,3090.2,3090.1,4.67492051]
[1765714325594,0.001,3090.2,3090.1,5.0132387]
[1765714326209,0.001,3090.2,3090.1,4.33261651]
[1765714326407,0.2461,3090.2,3090.1,4.33261651]
[1765714326815,0.001,3090.2,3090.1,4.33261651]
[1765714327018,0.001,3090.2,3090.1,4.3487498]
[1765714327200,0.001,3090.2,3090.1,4.78541651]
[1765714327598,0.001,3090.2,3090.1,3.81661651]
[1765714327908,0.001,3090.2,3090.1,4.78541651]
[1765714328910,0.001,3090.2,3090.1,35.7026538]
[1765714329103,0.001,3090.2,3090.1,24.52512051]
[1765714329415,0.001,3090.2,3090.1,13.24112051]
[1765714329657,0.2461,3090.2,3090.1,3.81661651]
[1765714329814,0.2461,3090.2,3090.1,4.33261651]
[1765714330192,0.001,3090.2,3090.1,16.84561651]
[1765714330397,0.001,3090.2,3090.1,35.68652051]
[1765714332340,0.1814,3092.0,3090.9,0.58047529]
[1765714332519,0.1814,3092.0,3091.0,1.09647529]
[1765714332520,0.54467849,3091.9,3091.0,1.09647529]
[1765714332834,0.1854,3091.0,3090.9,0.09628809]
[1765714333040,0.48497849,3091.0,3090.7,0.09628809]
[1765714333198,0.1814,3092.0,3091.0,0.58047529]
[1765714333407,0.2451,3091.7,3091.1,0.516]
[1765714333610,0.24987152,3091.6,3091.1,0.516]
[1765714333824,0.1951,3091.7,3091.1,0.516]
[1765714334115,0.1814,3092.0,3091.1,0.516]
[1765714334642,0.1814,3092.0,3091.3,0.58047529]
[1765714335006,0.1951,3091.4,3091.3,0.58047529]
[1765714335941,0.331,3091.4,3091.3,0.58047529]
[1765714336529,0.331,3091.4,3091.3,3.81536028]
[1765714336530,0.1951,3091.4,3091.3,3.81536028]
[1765714337745,0.331,3091.4,3091.3,3.81536028]
[1765714338341,0.1951,3091.4,3091.3,3.81536028]
[1765714338846,0.001,3091.7,3091.5,0.58047529]
[1765714339018,0.001,3091.7,3091.6,0.58047529]
[1765714339346,0.001,3091.7,3091.6,1.09647529]
[1765714339664,0.001,3091.7,3091.6,31.09647529]
[1765714339823,0.001,3091.7,3091.6,31.54927529]
[1765714340024,0.001,3093.0,3091.7,0.58047529]
[1765714340241,0.001,3093.0,3091.6,1.4644]
[1765714340423,0.001,3093.0,3091.8,30.0]
[1765714340630,0.001,3093.0,3091.9,10.58047529]
[1765714340831,0.58047529,3093.8,3092.9,0.6383]
[1765714341037,0.58047529,3093.8,3093.7,31.43877929]
[1765714341358,3.22966918,3096.3,3094.2,0.98597929]
[1765714341572,0.04037206,3096.2,3093.9,30.0]
[1765714341769,0.04037206,3096.2,3093.7,0.4528]
[1765714341770,0.0961,3093.8,3093.6,0.97001521]
[1765714341938,0.0961,3093.6,3093.1,0.58047529]
[1765714342139,0.04038641,3095.1,3092.6,0.405504]
[1765714342343,0.071,3105.0,3092.2,0.12939184]
[1765714342344,0.0403825,3095.4,3093.4,0.58047529]
[1765714342528,0.405504,3095.1,3093.6,30.0]
[1765714342730,0.405504,3095.1,3094.0,0.58047529]
[1765714342956,0.0961,3095.0,3093.7,6.46475094]
[1765714343162,0.0961,3095.0,3093.7,3.23237547]
[1765714343163,0.0961,3093.8,3093.7,3.23237547]
[1765714343340,0.0961,3095.2,3093.8,0.405504]
[1765714343531,0.0961,3095.2,3093.9,30.0]
[1765714343732,0.0961,3095.2,3094.2,0.58047529]
[1765714343933,0.0961,3095.2,3094.4,30.0]
[1765714344148,0.0961,3095.2,3094.3,0.518]
[1765714344363,3.22987378,3096.1,3094.3,0.518]
[1765714344364,0.0961,3095.5,3094.3,0.518]
[1765714344567,0.0961,3095.5,3094.5,0.58047529]
[1765714344731,0.0961,3095.5,3094.3,0.518]
[1765714344732,0.0961,3095.5,3094.6,6.4628708]
[1765714344937,6.45959773,3096.2,3094.8,30.0]
[1765714345146,0.0961,3094.9,3094.5,3.23150694]
[1765714345329,0.0961,3094.7,3094.5,3.23150694]
[1765714345650,0.0961,3094.6,3094.5,3.23150694]
[1765714346033,0.0971,3095.1,3094.6,0.58047529]
[1765714346034,0.001,3095.1,3094.6,0.58047529]
[1765714346233,0.001,3095.1,3094.5,6.46304676]
[1765714346234,0.0961,3094.6,3094.5,3.23150694]
[1765714346437,0.0961,3094.6,3094.5,3.23153982]
[1765714346640,0.1922,3094.6,3093.8,0.58047529]
[1765714346842,0.001,3095.1,3094.2,0.58047529]
[1765714347137,0.001,3095.1,3094.3,0.518]
[1765714347338,0.001,3095.1,3094.6,30.0]
[1765714347556,0.001,3095.1,3094.8,2.63647529]
[1765714347757,0.001,3095.1,3094.6,0.405504]
[1765714347967,0.001,3095.1,3094.9,0.518]
[1765714348337,0.001,3095.1,3095.0,20.67047529]
[1765714348541,0.001,3095.1,3095.0,1.09847529]
[1765714348870,0.001,3095.1,3095.0,3.81149306]
[1765714348871,0.0971,3095.1,3095.0,3.81149306]
[1765714349050,0.0971,3095.1,3093.4,3.232663]
[1765714349370,0.001,3095.1,3093.8,30.0]
[1765714349675,0.001,3095.1,3094.0,30.0]
[1765714349873,0.001,3095.1,3094.5,0.58047529]
[1765714350070,0.001,3095.1,3094.6,1.09947529]
[1765714350271,0.001,3095.1,3094.7,0.519]
[1765714350568,0.001,3095.1,3094.9,10.58047529]
[1765714350769,0.001,3095.1,3095.0,3.23101777]
[1765714351340,0.001,3095.1,3095.0,3.70901777]
[1765714351671,0.001,3095.1,3095.0,34.16841777]
[1765714351873,0.001,3095.1,3095.0,6.44841777]
[1765714352374,0.001,3095.1,3095.0,5.98901777]
[1765714352580,0.0971,3095.1,3094.5,10.0]
[1765714352873,0.0971,3095.1,3094.1,0.4594]
[1765714352874,0.0961,3094.6,3094.4,6.46319006]
[1765714353070,0.0961,3094.6,3094.5,0.58047529]
[1765714353275,0.1922,3094.5,3093.1,3.69236466]
[1765714353450,0.0961,3093.9,3093.1,6.48204617]
[1765714353658,0.0961,3093.9,3093.1,6.46600496]
[1765714353853,0.1922,3093.9,3093.1,6.46600496]
[1765714354704,0.0961,3093.2,3093.0,0.002]
[1765714354968,0.0961,3093.8,3093.0,0.002]
[1765714354969,0.0961,3093.1,3093.0,0.002]
[1765714355175,0.0961,3093.8,3093.0,0.002]
[1765714356066,0.0961,3093.1,3093.0,0.002]
[1765714358415,0.0961,3093.1,3092.1,0.58047529]
[1765714358571,0.1882,3092.2,3091.7,3.2364496]
[1765714358772,0.1882,3092.2,3091.7,0.002]
[1765714359092,0.0941,3091.8,3091.7,0.002]
[1765714359493,0.1882,3091.8,3091.7,0.002]
[1765714360762,3.42256186,3091.8,3091.7,0.002]
[1765714360961,4.09787058,3091.8,3091.7,0.002]
[1765714361690,4.67834587,3091.8,3091.7,0.002]
[1765714362497,5.08384987,3091.8,3091.7,0.002]
[1765714362697,5.38107373,3091.8,3091.7,0.002]
[1765714363416,1.17417929,3091.7,3090.4,0.002]
[1765714363618,0.19038809,3090.5,3090.4,0.002]
[1765714363826,0.71038809,3090.5,3090.4,0.002]
[1765714364125,0.80448809,3090.5,3090.4,0.002]
[1765714364610,0.7082,3090.5,3090.4,0.002]
[1765714365006,0.1882,3090.5,3090.4,0.002]
[1765714366090,0.0941,3090.5,3090.4,0.002]
[1765714367822,0.52,3090.8,3090.4,0.002]
[1765714368422,0.63439546,3091.7,3090.4,0.002]
[1765714368717,0.6141,3091.6,3090.4,0.002]
[1765714368925,0.52,3091.5,3090.4,0.4614]
[1765714369131,0.52,3091.5,3090.5,6.47144474]
[1765714369290,0.0941,3091.6,3090.5,3.23572237]
[1765714369492,0.6141,3091.6,3090.5,3.23572237]
[1765714369922,0.0941,3091.5,3090.5,3.23572237]
[1765714370123,0.23082153,3091.5,3090.4,0.002]
[1765714370326,0.19038809,3091.5,3090.4,0.002]
[1765714370530,0.0941,3090.5,3090.4,3.2378046]
[1765714371214,0.0941,3090.5,3090.4,0.002]
[1765714371412,0.52,3090.9,3090.4,0.002]
[1765714371614,0.0941,3090.5,3090.4,0.002]
[1765714371997,0.1882,3090.5,3090.4,0.002]
[1765714372927,0.0941,3090.5,3090.4,0.002]
[1765714373127,0.1882,3090.5,3090.4,0.002]
[1765714373499,0.0941,3090.5,3090.4,0.002]
[1765714373947,0.1882,3090.5,3090.4,0.002]
[1765714375433,0.5710199,3090.5,3090.4,0.002]
[1765714375732,3.42392237,3090.5,3090.4,0.002]
[1765714376301,0.1882,3090.5,3090.4,0.002]
[1765714376836,3.42392237,3090.5,3090.4,0.002]
[1765714378344,4.40990166,3090.5,3090.4,0.002]
[1765714379448,4.92890166,3090.5,3090.4,0.002]
[1765714379766,5.75901657,3090.5,3090.4,0.002]
[1765714380235,4.83451257,3090.5,3090.4,0.002]
[1765714380734,0.92421491,3090.5,3090.4,0.002]
[1765714380938,0.6131,3090.5,3090.4,0.002]
[1765714381128,0.0941,3090.5,3090.4,0.002]
[1765714381330,0.6131,3090.5,3090.4,0.002]
[1765714381515,3.84882237,3090.5,3090.4,0.002]
[1765714381724,3.94292237,3090.5,3090.4,0.002]
[1765714381918,4.72845148,3090.5,3090.4,0.002]
[1765714383448,5.75487729,3090.5,3090.4,0.002]
[1765714383825,6.052914,3090.5,3090.4,0.002]
[1765714385117,39.466914,3090.5,3090.4,0.002]
[1765714385314,39.466914,3090.5,3089.1,0.002]
[1765714385315,0.405504,3089.6,3089.1,0.002]
[1765714385514,0.405504,3089.0,3087.9,0.002]
[1765714386036,0.405504,3088.8,3087.9,0.002]
[1765714386235,0.70354071,3088.8,3087.9,0.002]
[1765714386557,0.0901,3088.7,3087.9,0.002]
[1765714387133,0.0901,3088.0,3087.9,0.002]
[1765714387339,0.6101,3088.0,3087.9,0.002]
[1765714387774,0.99493652,3088.0,3087.9,0.002]
[1765714388370,0.6101,3088.0,3087.9,0.002]
[1765714389844,0.50179209,3088.6,3087.9,0.002]
[1765714390045,0.52,3088.5,3087.9,0.002]
[1765714390250,0.58047529,3088.4,3087.9,0.002]
[1765714390449,0.52,3088.3,3087.9,0.002]
[1765714390669,0.818737,3088.3,3087.9,0.002]
[1765714391042,0.405504,3087.7,3086.6,0.002]
[1765714391280,1.07407929,3087.5,3086.6,0.002]
[1765714391484,0.818737,3087.4,3086.6,0.002]
[1765714392085,0.58047529,3087.2,3086.6,0.002]
[1765714392374,0.0881,3086.7,3086.6,0.002]
[1765714392672,0.6081,3086.7,3086.6,0.002]
[1765714392846,0.6962,3086.7,3086.6,0.002]
[1765714393455,0.994937,3086.7,3086.6,0.002]
[1765714393799,1.400441,3086.7,3086.6,0.002]
[1765714394001,4.70062212,3086.7,3086.6,0.002]
[1765714394197,5.72553463,3086.7,3086.6,0.002]
[1765714395547,5.20553463,3086.7,3086.6,0.002]
[1765714395741,5.63743463,3086.7,3086.6,0.002]
[1765714396556,5.72553463,3086.7,3086.6,0.002]
[1765714396958,1.3841248,3086.7,3086.6,0.002]
[1765714397319,0.52,3086.7,3086.6,0.002]
[1765714398275,0.52,3086.7,3086.6,0.9428]
[1765714399379,3.91597411,3087.2,3086.6,0.9428]
[1765714399584,0.52,3087.1,3086.6,0.9428]
[1765714399781,0.52,3087.1,3086.6,0.002]
[1765714399985,0.58037788,3087.0,3086.6,0.002]
[1765714400185,0.66847788,3087.0,3086.6,0.002]
[1765714400385,3.23949593,3086.9,3086.6,0.002]
[1765714400595,0.493604,3086.7,3086.6,0.002]
[1765714400795,1.013604,3086.7,3086.6,0.002]
[1765714401107,1.93149943,3086.7,3086.6,0.002]
[1765714403101,5.75168055,3086.7,3086.6,0.002]
[1765714403870,5.66358055,3086.7,3086.6,0.002]
[1765714404780,5.75168055,3086.7,3086.6,0.002]
[1765714405382,6.04828828,3086.7,3086.6,0.002]
[1765714406498,6.0887846,3086.7,3086.6,0.002]
[1765714406673,5.4806846,3086.7,3086.6,0.002]
[1765714406882,6.04828828,3086.7,3086.6,0.002]
[1765714407495,6.0887846,3086.7,3086.6,0.002]
[1765714408407,5.4806846,3086.7,3086.6,0.002]
[1765714408576,6.0006846,3086.7,3086.6,0.002]
[1765714408776,6.0887846,3086.7,3086.6,0.002]
[1765714409470,6.04828828,3086.7,3086.6,0.002]
[1765714409672,5.52828828,3086.7,3086.6,0.002]
[1765714409889,6.0006846,3086.7,3086.6,0.002]
[1765714410098,6.0887846,3086.7,3086.6,0.002]
[1765714411100,6.0006846,3086.7,3086.6,0.002]
[1765714411890,5.4806846,3086.7,3086.6,0.002]
[1765714412091,5.96018828,3086.7,3086.6,0.002]
[1765714413688,6.0887846,3086.7,3086.6,0.002]
[1765714413886,5.5687846,3086.7,3086.6,0.002]
[1765714414087,6.0887846,3086.7,3086.6,0.002]
[1765714414784,9.5027846,3086.7,3086.6,0.002]
[1765714414988,9.46228828,3086.7,3086.6,0.002]
[1765714415301,3.819504,3086.6,3085.5,3.70315407]
[1765714415486,8.53666588,3086.6,3085.5,3.70315407]
[1765714415685,8.58426825,3086.6,3085.5,3.70315407]
[1765714416375,5.08216825,3086.6,3086.1,0.1976]
[1765714416576,5.60216825,3086.6,3086.1,0.1976]
[1765714416800,5.08216825,3086.6,3086.1,0.1976]
[1765714416972,5.60116825,3086.6,3086.1,0.1976]
[1765714417372,5.08216825,3086.6,3086.1,0.1976]
[1765714417578,5.60116825,3086.6,3086.1,0.1976]
[1765714418394,1.65796937,3086.6,3086.1,0.1976]
[1765714418712,1.65796937,3086.6,3086.1,3.90013187]
[1765714418713,1.39608302,3086.6,3086.1,3.90013187]
[1765714418900,1.39608302,3086.6,3086.1,0.6598]
[1765714419295,0.29660773,3086.6,3086.5,0.947]
[1765714419683,0.81560773,3086.6,3086.5,0.947]
[1765714421205,0.29660773,3086.6,3086.5,0.947]
[1765714421612,0.81560773,3086.6,3086.5,0.947]
[1765714423308,0.81560773,3086.6,3086.5,4.18691576]
[1765714424417,0.29660773,3086.6,3086.5,4.18691576]
[1765714425522,0.29660773,3086.6,3086.5,0.947]
[1765714426305,0.29660773,3086.6,3086.5,4.18691576]
[1765714427000,0.81560773,3086.6,3086.5,4.18691576]
[1765714427836,0.04048845,3087.3,3086.6,0.58047529]
[1765714428000,0.52,3087.7,3087.2,0.6804]
[1765714428447,0.52,3087.7,3087.2,1.1426]
[1765714428651,0.3847,3087.3,3086.5,0.002]
[1765714428938,0.5206,3087.2,3086.5,0.4642]
[1765714429338,0.519,3087.2,3086.5,0.4642]
[1765714429505,0.519,3087.2,3086.5,3.70407561]
[1765714429707,0.519,3087.1,3086.5,3.70409488]
[1765714430437,0.519,3087.1,3086.6,3.23980144]
[1765714430732,3.23876942,3087.6,3086.6,36.94181223]
[1765714430932,0.84297694,3087.5,3087.0,0.4828]
[1765714431303,0.32397694,3087.5,3087.4,0.4828]
[1765714431533,0.001,3087.7,3087.4,0.4828]
[1765714431913,0.0414832,3087.7,3087.1,0.1976]
[1765714432118,0.001,3087.7,3087.1,0.1976]
[1765714432310,3.23965825,3087.7,3087.1,0.1976]
[1765714432637,0.64782303,3087.6,3086.9,0.4622]
[1765714432819,0.519,3087.5,3086.6,30.4622]
[1765714433136,0.519,3087.5,3086.7,0.4622]
[1765714433436,0.519,3087.5,3086.7,3.7018208]
[1765714433736,0.519,3087.5,3086.8,3.23959552]
[1765714433941,0.69482983,3087.5,3086.8,3.70179552]
[1765714434235,0.69482983,3087.5,3086.8,0.4622]
[1765714434885,3.2389713,3087.4,3086.8,0.4622]
[1765714435740,3.2389713,3087.4,3086.8,3.70179916]
[1765714435942,0.001,3087.5,3087.3,0.6767]
[1765714436112,0.001,3087.5,3087.4,0.4972]
[1765714436512,0.001,3087.5,3087.1,0.1939]
[1765714436942,0.001,3087.5,3087.4,0.4972]
[1765714437242,0.52,3087.5,3087.4,0.4972]
[1765714437442,0.52,3087.5,3087.4,0.9852]
[1765714437944,0.52,3087.5,3087.4,0.4972]
[1765714438126,0.52,3087.5,3087.1,3.92118369]
[1765714438322,0.001,3087.5,3087.4,0.4972]
[1765714438546,0.001,3087.7,3087.4,0.4972]
[1765714438744,0.001,3087.7,3087.6,3.73596149]
[1765714438957,0.001,3087.7,3087.6,4.22396149]
[1765714439912,0.001,3087.7,3087.6,5.20994078]
[1765714440122,0.001,3087.7,3087.6,6.1510353]
[1765714440813,3.23719957,3089.1,3089.0,29.997]
[1765714441015,3.69978448,3089.1,3089.0,29.997]
[1765714441237,4.08328448,3089.1,3089.0,29.997]
[1765714441426,5.06926377,3089.1,3089.0,29.997]
[1765714441631,5.95178954,3089.1,3089.0,29.997]
[1765714443648,1.34511068,3089.1,3089.0,29.997]
[1765714443940,5.02234902,3089.1,3089.0,29.997]
[1765714444315,5.18494902,3089.1,3089.0,29.997]
[1765714445917,5.02234902,3089.1,3089.0,29.997]
[1765714446135,1.20468491,3089.1,3089.0,29.997]
[1765714446335,0.58047529,3089.6,3089.0,29.997]
[1765714446538,0.3857,3089.1,3089.0,29.997]
[1765714447254,3.78548882,3089.1,3089.0,29.997]
[1765714447418,1.08226738,3089.6,3089.0,29.997]
[1765714447419,0.04046355,3089.2,3089.0,30.9822]
[1765714447614,0.519,3089.7,3089.1,0.4972]
[1765714447936,1.24812691,3089.7,3089.1,0.4972]
[1765714448126,1.24812691,3089.7,3089.1,0.6911]
[1765714449336,3.23666494,3089.6,3089.1,0.6911]
[1765714449536,3.23666494,3089.6,3089.0,29.999]
[1765714449740,0.001,3089.1,3089.0,29.999]
[1765714449943,0.52,3089.1,3089.0,29.999]
[1765714450151,0.52,3089.1,3089.0,30.4962]
[1765714451348,0.52,3089.1,3089.0,30.9842]
[1765714451952,0.519,3089.1,3089.0,0.9872]
[1765714452549,0.33979945,3090.4,3089.0,0.9872]
[1765714452848,0.519,3090.3,3089.0,0.9872]
[1765714453052,0.33980207,3090.2,3089.0,0.002]
[1765714453355,9.70873785,3090.0,3089.0,0.002]
[1765714453552,1.35024376,3089.9,3089.0,0.002]
[1765714453759,0.29935162,3089.8,3089.0,0.002]
[1765714453924,0.405504,3089.6,3089.0,0.002]
[1765714454446,0.70485562,3089.6,3089.0,0.002]
[1765714456756,0.58047529,3089.4,3089.0,0.002]
[1765714456958,0.70540147,3089.3,3089.0,0.002]
[1765714457125,0.519,3089.2,3089.0,0.002]
[1765714458056,0.81854465,3089.2,3089.0,0.002]
[1765714458722,3.23718882,3089.1,3089.0,0.002]
[1765714458927,3.53673347,3089.1,3089.0,0.002]
[1765714459232,4.33655443,3089.1,3089.0,0.002]
[1765714460458,4.37701929,3089.1,3089.0,0.002]
[1765714460631,4.33655443,3089.1,3089.0,0.002]
[1765714460964,4.37701929,3089.1,3089.0,0.002]
[1765714461165,4.33655443,3089.1,3089.0,0.002]
[1765714463576,5.32253372,3089.1,3089.0,0.002]
[1765714464959,5.84053372,3089.1,3089.0,0.002]
[1765714465938,1.6798409,3089.1,3089.0,0.4992]
[1765714466143,0.29954465,3089.1,3089.0,0.9785]
[1765714466449,0.29954465,3089.5,3089.0,0.9785]
[1765714466660,0.29954465,3089.4,3089.1,0.4793]
[1765714466874,0.001,3089.8,3089.1,0.4793]
[1765714467046,0.001,3089.8,3089.7,0.4746]
[1765714467543,0.001,3089.8,3089.7,4.20046017]
[1765714467938,0.001,3089.8,3089.7,0.96389999]
[1765714468140,0.001,3089.8,3089.7,0.9539]
[1765714468776,0.001,3089.8,3089.7,4.19046018]
[1765714469346,0.001,3089.8,3089.7,0.96389999]
[1765714469551,0.001,3089.8,3089.7,4.20046017]
[1765714470970,0.001,3089.8,3089.7,0.9539]
[1765714471150,0.001,3089.8,3089.7,4.19046018]
[1765714472053,0.001,3089.8,3089.7,0.9539]
[1765714472255,0.001,3089.8,3089.7,0.4746]
[1765714473573,0.001,3089.8,3089.7,0.9482]
[1765714475181,0.2158,3089.8,3089.0,0.4756]
[1765714475381,0.2148,3089.6,3089.0,0.4756]
[1765714475682,0.2148,3089.6,3089.0,0.002]
[1765714475852,0.04045962,3089.5,3089.0,0.002]
[1765714476259,0.2148,3089.1,3089.0,0.002]
[1765714476458,0.7328,3089.1,3089.0,0.002]
[1765714477186,3.96998882,3089.1,3089.0,0.002]
[1765714477386,4.7121749,3089.1,3089.0,0.002]
[1765714477789,4.75263976,3089.1,3089.0,0.002]
[1765714477974,4.7121749,3089.1,3089.0,0.002]
[1765714479097,5.01264182,3089.1,3089.0,0.002]
[1765714480696,1.042653,3089.1,3089.0,0.002]
[1765714480998,0.81846692,3089.1,3089.0,0.002]
[1765714481194,4.27045574,3089.1,3089.0,0.002]
[1765714482087,0.30046692,3089.1,3089.0,0.4861]
[1765714482260,0.30046692,3089.4,3089.0,0.9597]
[1765714482463,0.001,3089.5,3089.3,0.4841]
[1765714482782,0.001,3089.5,3089.1,0.48359999]
[1765714482783,0.001,3089.5,3089.4,0.4841]
[1765714483207,0.001,3089.5,3089.4,0.9577]
[1765714485690,0.001,3089.8,3089.7,0.00999999]
[1765714486005,0.001,3089.8,3089.7,0.49409999]
[1765714486177,0.001,3089.8,3089.7,0.96769999]
[1765714487698,0.001,3089.8,3089.7,4.20426017]
[1765714490109,0.001,3089.8,3089.7,3.73066017]
[1765714490410,0.001,3089.8,3089.7,4.20426017]
[1765714490886,0.001,3089.8,3089.7,0.96769999]
[1765714491515,0.001,3089.8,3089.7,0.49409999]
[1765714491806,0.001,3089.8,3089.0,0.002]
[1765714491807,0.2165,3089.8,3089.2,3.71067725]
[1765714492310,0.56178163,3089.8,3089.2,3.71067725]
[1765714493706,0.56178163,3089.8,3089.3,0.00999999]
[1765714493907,0.56178163,3089.8,3089.7,0.4841]
[1765714493908,0.001,3089.8,3089.7,0.4841]
[1765714494807,0.001,3089.8,3089.7,0.9577]
[1765714495606,0.2165,3089.8,3089.2,3.71066717]
[1765714495810,0.2165,3089.8,3089.1,0.4986]
[1765714496582,0.001,3089.8,3089.7,0.4881]
[1765714497111,0.001,3089.8,3089.7,0.9867]
[1765714500523,0.001,3089.8,3089.7,4.22326018]
[1765714500719,0.001,3089.8,3089.7,0.9867]
[1765714503001,0.001,3089.8,3089.7,0.4881]
[1765714503924,0.001,3089.8,3089.7,0.9867]
[1765714504097,0.001,3089.8,3089.7,4.22326018]
[1765714504724,0.001,3089.8,3089.7,4.97025349]
[1765714504947,0.001,3090.8,3089.7,4.97025349]
[1765714504948,0.001,3090.8,3090.6,0.00999999]
[1765714505130,0.001,3090.8,3090.7,0.6781]
[1765714505298,0.001,3090.8,3090.7,1.1767]
[1765714506541,0.001,3090.8,3090.7,4.41221299]
[1765714506737,0.001,3090.8,3090.7,4.42221298]
[1765714507608,0.001,3090.8,3090.7,5.18799926]
[1765714507828,0.001,3090.8,3090.7,5.76847455]
[1765714508906,0.001,3090.8,3090.7,6.28547455]
[1765714510037,0.001,3090.8,3090.7,5.76847455]
[1765714510204,0.001,3090.8,3090.7,5.51968827]
[1765714512027,0.001,3090.8,3090.7,5.92519227]
[1765714512507,0.001,3090.8,3090.7,5.00268827]
[1765714512711,0.001,3090.8,3090.7,5.51968827]
[1765714513535,0.001,3090.8,3090.7,5.50968828]
[1765714513736,0.001,3090.8,3090.7,0.00999999]
[1765714514517,0.001,3090.8,3090.7,3.72361299]
[1765714514842,0.001,3090.8,3090.7,4.22221299]
[1765714516927,0.001,3090.8,3090.7,4.73921299]
[1765714517249,0.001,3090.8,3090.7,4.22221299]
[1765714517742,0.001,3090.8,3090.7,4.73921299]
[1765714518514,0.001,3090.8,3090.7,3.23551299]
[1765714518950,0.001,3090.8,3090.5,6.47143269]
[1765714519735,0.001,3090.8,3090.4,0.14999999]
[1765714519736,0.001,3090.8,3090.7,0.4881]
[1765714520345,0.001,3090.8,3090.4,6.62163446]
[1765714520515,0.2575,3090.8,3090.4,6.62163446]
[1765714520949,0.2575,3090.8,3090.4,7.12023446]
[1765714521842,0.001,3090.8,3090.4,7.12023446]
[1765714522547,0.001,3090.8,3090.4,6.62163446]
[1765714523263,0.001,3090.8,3090.7,0.4881]
[1765714523625,0.001,3090.8,3090.7,0.9867]
[1765714525027,0.001,3090.8,3090.7,3.72361299]
[1765714526750,0.2575,3090.8,3090.7,3.23551299]
[1765714526931,0.001,3090.8,3090.7,3.69481299]
[1765714527554,0.001,3090.8,3090.7,3.23551299]
[1765714527753,0.2575,3090.8,3090.7,3.23551299]
[1765714528048,0.001,3090.8,3090.7,3.23551299]
[1765714528253,0.001,3090.8,3090.7,3.69481299]
[1765714528959,0.2575,3090.8,3090.7,3.23551299]
[1765714529165,0.2575,3090.8,3090.5,6.47134928]
[1765714529656,0.001,3090.8,3090.5,6.96614928]
[1765714531555,0.001,3090.8,3090.7,0.4924]
[1765714532337,0.001,3090.8,3090.5,6.47134928]
[1765714532557,0.001,3090.8,3090.5,6.96614928]
[1765714533829,0.001,3090.8,3090.7,0.4924]
[1765714534336,0.001,3090.8,3090.7,0.9872]
[1765714535329,0.001,3090.8,3090.7,4.22271299]
[1765714535864,0.001,3090.8,3090.7,4.73971299]
[1765714537402,0.001,3090.8,3090.7,6.13383986]
[1765714537604,0.001,3090.8,3090.7,6.11772227]
[1765714538702,0.001,3090.8,3090.7,6.52322627]
[1765714541784,0.001,3090.8,3090.7,6.11772227]
[1765714541991,0.001,3090.8,3090.7,5.32018828]